[Event "Late-Titled-Tuesday-Blitz-April-23-2024"]
[Site "Chess.com"]
[Date "2024.04.23"]
[Round "1"]
[White "MaiqMaster"]
[Black "AradNazari"]
[Result "0-1"]
[WhiteElo "2443"]
[BlackElo "2767"]
[TimeControl "180+1"]
[EndTime "14:08:11 PDT"]
[Termination "AradNazari won by resignation"]

1. d4 {[%clk 0:03:00.9]} 1... Nf6 {[%clk 0:02:59.2]} 2. c4 {[%clk 0:02:59]} 2...
g6 {[%clk 0:02:59]} 3. g3 {[%clk 0:02:58.6]} 3... c6 {[%clk 0:02:58.7]} 4. Bg2
{[%clk 0:02:57.8]} 4... d5 {[%clk 0:02:59]} 5. Nf3 {[%clk 0:02:57.2]} 5... Bg7
{[%clk 0:02:58.8]} 6. O-O {[%clk 0:02:57.8]} 6... O-O {[%clk 0:02:59.3]} 7. Ne5
{[%clk 0:02:57.4]} 7... Be6 {[%clk 0:02:58.6]} 8. cxd5 {[%clk 0:02:53.2]} 8...
Nxd5 {[%clk 0:02:57]} 9. Nd2 {[%clk 0:02:47.7]} 9... Nd7 {[%clk 0:02:52.5]} 10.
Nef3 {[%clk 0:02:38]} 10... h6 {[%clk 0:02:44.7]} 11. e4 {[%clk 0:02:34.3]}
11... Nb4 {[%clk 0:02:36.5]} 12. a3 {[%clk 0:02:29.2]} 12... Nd3 {[%clk
0:02:35.4]} 13. Qc2 {[%clk 0:02:25.7]} 13... Nxc1 {[%clk 0:02:32.8]} 14. Raxc1
{[%clk 0:02:25.7]} 14... Qb6 {[%clk 0:02:24.1]} 15. Qc3 {[%clk 0:01:58.4]} 15...
Rfd8 {[%clk 0:02:17.7]} 16. Rfd1 {[%clk 0:01:46.9]} 16... Rac8 {[%clk
0:02:16.3]} 17. b4 {[%clk 0:01:45.3]} 17... Bg4 {[%clk 0:01:58.4]} 18. Nc4
{[%clk 0:01:42.1]} 18... Qc7 {[%clk 0:01:52.4]} 19. h3 {[%clk 0:01:41]} 19...
Bxf3 {[%clk 0:01:45.4]} 20. Qxf3 {[%clk 0:01:41.9]} 20... Nb6 {[%clk 0:01:42.9]}
21. Nxb6 {[%clk 0:01:25.8]} 21... Qxb6 {[%clk 0:01:43.8]} 22. d5 {[%clk
0:01:22.8]} 22... c5 {[%clk 0:01:42]} 23. Qb3 {[%clk 0:00:59.5]} 23... Bd4
{[%clk 0:01:18.5]} 24. Rc4 {[%clk 0:00:57.7]} 24... e5 {[%clk 0:01:11.5]} 25.
Rdc1 {[%clk 0:00:54.1]} 25... Rb8 {[%clk 0:01:01]} 26. b5 {[%clk 0:00:41.1]}
26... Rd6 {[%clk 0:00:51]} 27. a4 {[%clk 0:00:40.9]} 27... a6 {[%clk 0:00:48.1]}
28. Rb1 {[%clk 0:00:37]} 28... Qa5 {[%clk 0:00:45.7]} 29. Rc2 {[%clk 0:00:31.5]}
29... Rb6 {[%clk 0:00:41.5]} 30. Bf1 {[%clk 0:00:24.3]} 30... Rd8 {[%clk
0:00:34.7]} 31. Bc4 {[%clk 0:00:22.6]} 31... Kg7 {[%clk 0:00:33.6]} 32. Kg2
{[%clk 0:00:21.4]} 32... h5 {[%clk 0:00:33]} 33. h4 {[%clk 0:00:20.6]} 33...
axb5 {[%clk 0:00:27.9]} 34. axb5 {[%clk 0:00:19.7]} 34... Ra8 {[%clk 0:00:26]}
35. Ra2 {[%clk 0:00:19.8]} 35... Qxa2 {[%clk 0:00:23.1]} 36. Qxa2 {[%clk
0:00:20.7]} 36... Rxa2 {[%clk 0:00:23.1]} 37. Bxa2 {[%clk 0:00:21.6]} 37... Rf6
{[%clk 0:00:23.5]} 38. f3 {[%clk 0:00:22.1]} 38... Rd6 {[%clk 0:00:20.7]} 39.
Bc4 {[%clk 0:00:21.4]} 39... Rd8 {[%clk 0:00:21.2]} 40. b6 {[%clk 0:00:19.7]}
40... Ra8 {[%clk 0:00:19.5]} 41. Bb5 {[%clk 0:00:20]} 41... Kf8 {[%clk
0:00:18.7]} 42. Bc6 {[%clk 0:00:19.9]} 42... Rb8 {[%clk 0:00:16.2]} 43. Rb5
{[%clk 0:00:16.5]} 43... Ke7 {[%clk 0:00:15.5]} 44. Rb1 {[%clk 0:00:11.5]} 44...
Kd6 {[%clk 0:00:15.2]} 45. Bb5 {[%clk 0:00:11.2]} 45... Ra8 {[%clk 0:00:15.9]}
46. Kh3 {[%clk 0:00:09.1]} 46... f6 {[%clk 0:00:13.9]} 47. g4 {[%clk 0:00:08.3]}
47... Ra3 {[%clk 0:00:13.7]} 48. Rf1 {[%clk 0:00:05.5]} 48... Rb3 {[%clk
0:00:13.1]} 49. Be8 {[%clk 0:00:05.5]} 49... hxg4+ {[%clk 0:00:07.4]} 50. Kxg4
{[%clk 0:00:06.1]} 50... Rxb6 {[%clk 0:00:06.6]} 51. Bxg6 {[%clk 0:00:06]} 51...
Rb2 {[%clk 0:00:07]} 52. h5 {[%clk 0:00:05.7]} 52... Ke7 {[%clk 0:00:05.6]} 53.
h6 {[%clk 0:00:04.4]} 53... Rg2+ {[%clk 0:00:05.8]} 54. Kh3 {[%clk 0:00:03.4]}
54... Rxg6 {[%clk 0:00:06]} 55. Rh1 {[%clk 0:00:01.6]} 55... Rxh6+ {[%clk
0:00:06.4]} 56. Kg2 {[%clk 0:00:02.1]} 56... Rxh1 {[%clk 0:00:07.3]} 57. Kxh1
{[%clk 0:00:03]} 57... b5 {[%clk 0:00:08.2]} 0-1

[Event "Late-Titled-Tuesday-Blitz-April-23-2024"]
[Site "Chess.com"]
[Date "2024.04.23"]
[Round "1"]
[White "zverr1"]
[Black "GMAkobianSTL"]
[Result "0-1"]
[WhiteElo "2463"]
[BlackElo "2812"]
[TimeControl "180+1"]
[EndTime "14:08:15 PDT"]
[Termination "GMAkobianSTL won by checkmate"]

1. d4 {[%clk 0:02:54.2]} 1... e6 {[%clk 0:02:59.6]} 2. c4 {[%clk 0:02:54.9]}
2... f5 {[%clk 0:02:57.6]} 3. g3 {[%clk 0:02:52.4]} 3... Nf6 {[%clk 0:02:56.9]}
4. Bg2 {[%clk 0:02:52.6]} 4... d5 {[%clk 0:02:56]} 5. Nh3 {[%clk 0:02:51.8]}
5... c6 {[%clk 0:02:55.6]} 6. O-O {[%clk 0:02:51.3]} 6... Bd6 {[%clk 0:02:54.6]}
7. Bf4 {[%clk 0:02:50.2]} 7... Be7 {[%clk 0:02:51]} 8. Qc2 {[%clk 0:02:46.9]}
8... O-O {[%clk 0:02:49.9]} 9. Nd2 {[%clk 0:02:47]} 9... Bd7 {[%clk 0:02:47.8]}
10. Qb3 {[%clk 0:01:55.9]} 10... Qb6 {[%clk 0:02:44.6]} 11. c5 {[%clk
0:01:52.9]} 11... Qxb3 {[%clk 0:02:41.1]} 12. axb3 {[%clk 0:01:52.9]} 12... Be8
{[%clk 0:02:33.6]} 13. Bxb8 {[%clk 0:01:49.1]} 13... Rxb8 {[%clk 0:02:32.8]} 14.
Rxa7 {[%clk 0:01:49.7]} 14... Ne4 {[%clk 0:02:30.7]} 15. Bxe4 {[%clk 0:01:40.1]}
15... fxe4 {[%clk 0:02:28.2]} 16. Nf4 {[%clk 0:01:36.5]} 16... e5 {[%clk
0:02:25.8]} 17. dxe5 {[%clk 0:01:13.3]} 17... Bxc5 {[%clk 0:02:24.3]} 18. Ra4
{[%clk 0:01:10.5]} 18... Bd7 {[%clk 0:02:11.8]} 19. e3 {[%clk 0:01:04]} 19...
Rfe8 {[%clk 0:02:05.4]} 20. b4 {[%clk 0:00:59.4]} 20... Bf8 {[%clk 0:01:59.9]}
21. Nb3 {[%clk 0:00:53.3]} 21... Rxe5 {[%clk 0:01:58.3]} 22. Nc5 {[%clk
0:00:53.4]} 22... Bg4 {[%clk 0:01:52.2]} 23. Rfa1 {[%clk 0:00:45.2]} 23... b6
{[%clk 0:01:49.7]} 24. Nb3 {[%clk 0:00:42.4]} 24... g5 {[%clk 0:01:44.8]} 25.
Ng2 {[%clk 0:00:36.5]} 25... c5 {[%clk 0:01:42.2]} 26. Ne1 {[%clk 0:00:34]}
26... Be2 {[%clk 0:01:29.7]} 27. Ra8 {[%clk 0:00:31.2]} 27... Ree8 {[%clk
0:01:26.8]} 28. Rxb8 {[%clk 0:00:30.7]} 28... Rxb8 {[%clk 0:01:25.9]} 29. Nc2
{[%clk 0:00:30.6]} 29... Bd3 {[%clk 0:01:23.2]} 30. Rc1 {[%clk 0:00:24.4]} 30...
Ra8 {[%clk 0:01:11.9]} 31. bxc5 {[%clk 0:00:21.4]} 31... bxc5 {[%clk 0:01:10.3]}
32. Na3 {[%clk 0:00:22]} 32... c4 {[%clk 0:01:05.8]} 33. Nd4 {[%clk 0:00:20]}
33... Bxa3 {[%clk 0:01:04.4]} 34. bxa3 {[%clk 0:00:20.9]} 34... Rxa3 {[%clk
0:01:02.5]} 35. h3 {[%clk 0:00:19.6]} 35... c3 {[%clk 0:01:01.2]} 36. Kg2 {[%clk
0:00:18.1]} 36... Kg7 {[%clk 0:00:58.2]} 37. g4 {[%clk 0:00:17.4]} 37... Kf6
{[%clk 0:00:56.7]} 38. Kg3 {[%clk 0:00:17.9]} 38... Ke5 {[%clk 0:00:54.5]} 39.
h4 {[%clk 0:00:18.4]} 39... h6 {[%clk 0:00:53.4]} 40. hxg5 {[%clk 0:00:18.5]}
40... hxg5 {[%clk 0:00:53.3]} 41. Kg2 {[%clk 0:00:16.3]} 41... Kd6 {[%clk
0:00:50.3]} 42. Kg3 {[%clk 0:00:12.9]} 42... Kc5 {[%clk 0:00:47.1]} 43. f4
{[%clk 0:00:13.3]} 43... exf3 {[%clk 0:00:41.9]} 44. Kxf3 {[%clk 0:00:14]} 44...
Be4+ {[%clk 0:00:41.6]} 45. Kg3 {[%clk 0:00:13.1]} 45... Kc4 {[%clk 0:00:39.5]}
46. Ne2 {[%clk 0:00:11.5]} 46... Kd3 {[%clk 0:00:37.7]} 47. Nd4 {[%clk
0:00:11.2]} 47... Kxe3 {[%clk 0:00:34.7]} 48. Nb5 {[%clk 0:00:11.8]} 48... Rb3
{[%clk 0:00:31.6]} 49. Nxc3 {[%clk 0:00:11.7]} 49... Kd2 {[%clk 0:00:29]} 50.
Rd1+ {[%clk 0:00:01.7]} 50... Kxc3 {[%clk 0:00:27.9]} 51. Kf2 {[%clk 0:00:01]}
51... d4 {[%clk 0:00:25.7]} 52. Kg3 {[%clk 0:00:00.3]} 52... Kc2+ {[%clk
0:00:24.8]} 53. Kf2 {[%clk 0:00:00.8]} 53... Kxd1 {[%clk 0:00:23]} 54. Kf1
{[%clk 0:00:01.7]} 54... Rf3+ {[%clk 0:00:22.1]} 55. Kg1 {[%clk 0:00:02.6]}
55... Ke2 {[%clk 0:00:20.9]} 56. Kg2 {[%clk 0:00:02.8]} 56... d3 {[%clk
0:00:21]} 57. Kh2 {[%clk 0:00:03.7]} 57... d2 {[%clk 0:00:21]} 58. Kg2 {[%clk
0:00:04.1]} 58... d1=Q {[%clk 0:00:20.3]} 59. Kh2 {[%clk 0:00:04.7]} 59... Rf2+
{[%clk 0:00:20.3]} 60. Kg3 {[%clk 0:00:04.8]} 60... Qd3# {[%clk 0:00:20.2]} 0-1

[Event "Late-Titled-Tuesday-Blitz-April-23-2024"]
[Site "Chess.com"]
[Date "2024.04.23"]
[Round "1"]
[White "GoltsevDmitry2000"]
[Black "Thormento16"]
[Result "1-0"]
[WhiteElo "2753"]
[BlackElo "2439"]
[TimeControl "180+1"]
[EndTime "14:08:16 PDT"]
[Termination "GoltsevDmitry2000 won by resignation"]

1. e4 {[%clk 0:02:57.9]} 1... e5 {[%clk 0:03:00.6]} 2. Nf3 {[%clk 0:02:58.2]}
2... Nc6 {[%clk 0:02:56.1]} 3. Bb5 {[%clk 0:02:58.6]} 3... a6 {[%clk 0:02:55.3]}
4. Ba4 {[%clk 0:02:57.6]} 4... d6 {[%clk 0:02:55.5]} 5. O-O {[%clk 0:02:57.6]}
5... Nf6 {[%clk 0:02:55.2]} 6. c3 {[%clk 0:02:57.6]} 6... Nxe4 {[%clk
0:02:42.1]} 7. d4 {[%clk 0:02:57.5]} 7... b5 {[%clk 0:02:40.3]} 8. Bc2 {[%clk
0:02:45.6]} 8... Nf6 {[%clk 0:02:37.2]} 9. dxe5 {[%clk 0:02:39.8]} 9... dxe5
{[%clk 0:02:31.3]} 10. Qxd8+ {[%clk 0:02:39.9]} 10... Kxd8 {[%clk 0:02:32.2]}
11. a4 {[%clk 0:02:18.1]} 11... Bb7 {[%clk 0:02:25.6]} 12. axb5 {[%clk
0:02:07.4]} 12... axb5 {[%clk 0:02:26.5]} 13. Rxa8+ {[%clk 0:02:07.7]} 13...
Bxa8 {[%clk 0:02:25.7]} 14. Ng5 {[%clk 0:02:08.6]} 14... Ke8 {[%clk 0:02:24.2]}
15. Bb3 {[%clk 0:02:07.9]} 15... Nd8 {[%clk 0:02:21.8]} 16. Rd1 {[%clk
0:01:54.5]} 16... Bd6 {[%clk 0:02:14.1]} 17. Na3 {[%clk 0:01:50.4]} 17... Bc6
{[%clk 0:02:12]} 18. Be3 {[%clk 0:01:42.7]} 18... h6 {[%clk 0:02:11.3]} 19. Nf3
{[%clk 0:01:42.6]} 19... Ke7 {[%clk 0:02:00.7]} 20. Nc2 {[%clk 0:01:31]} 20...
Ne6 {[%clk 0:01:54.9]} 21. Nb4 {[%clk 0:01:30.2]} 21... Bxb4 {[%clk 0:01:50.1]}
22. Nxe5 {[%clk 0:01:27.9]} 22... Bxg2 {[%clk 0:01:31.2]} 23. Kxg2 {[%clk
0:01:13.9]} 23... Bd6 {[%clk 0:01:29.5]} 24. Nc6+ {[%clk 0:01:02.5]} 24... Kd7
{[%clk 0:01:26.2]} 25. Ne5+ {[%clk 0:01:03]} 25... Ke7 {[%clk 0:01:26.1]} 26.
Nc6+ {[%clk 0:00:52.4]} 26... Kd7 {[%clk 0:01:24.6]} 27. Na7 {[%clk 0:00:27.7]}
27... Rb8 {[%clk 0:00:58.4]} 28. h3 {[%clk 0:00:19.2]} 28... Rb7 {[%clk
0:00:58.4]} 29. Kf1 {[%clk 0:00:11.7]} 29... g5 {[%clk 0:00:58.1]} 30. Kg2
{[%clk 0:00:11.3]} 30... Nf4+ {[%clk 0:00:55.9]} 31. Bxf4 {[%clk 0:00:10.8]}
31... gxf4 {[%clk 0:00:55.5]} 32. Nxb5 {[%clk 0:00:07.6]} 32... Rxb5 {[%clk
0:00:54.8]} 33. Ba4 {[%clk 0:00:08]} 33... c6 {[%clk 0:00:54]} 34. Bxb5 {[%clk
0:00:08.5]} 34... cxb5 {[%clk 0:00:54.9]} 35. Kf3 {[%clk 0:00:07.7]} 35... Ke6
{[%clk 0:00:48.1]} 36. b3 {[%clk 0:00:08.2]} 36... Nd5 {[%clk 0:00:41.2]} 37. c4
{[%clk 0:00:09.1]} 37... bxc4 {[%clk 0:00:41.6]} 38. bxc4 {[%clk 0:00:09.1]}
38... Nc3 {[%clk 0:00:38.6]} 39. Re1+ {[%clk 0:00:09.3]} 39... Kf6 {[%clk
0:00:34.7]} 40. Ra1 {[%clk 0:00:09.7]} 40... Ke5 {[%clk 0:00:27.6]} 41. Ra7
{[%clk 0:00:06.6]} 41... f6 {[%clk 0:00:27.5]} 42. Ra6 {[%clk 0:00:06.3]} 42...
Bc5 {[%clk 0:00:22.7]} 43. Rc6 {[%clk 0:00:04.7]} 43... Kd4 {[%clk 0:00:21.4]}
44. Rxf6 {[%clk 0:00:04.5]} 44... Kxc4 {[%clk 0:00:21.3]} 45. Rxf4+ {[%clk
0:00:04.9]} 45... Kd5 {[%clk 0:00:20.8]} 46. Rf5+ {[%clk 0:00:05.6]} 46... Kd6
{[%clk 0:00:19.9]} 47. Rf6+ {[%clk 0:00:05.7]} 47... Ke5 {[%clk 0:00:20.1]} 48.
Rxh6 {[%clk 0:00:06.6]} 48... Nd5 {[%clk 0:00:19.3]} 49. Rh5+ {[%clk 0:00:06.9]}
49... Ke6 {[%clk 0:00:19]} 50. Rh6+ {[%clk 0:00:07.7]} 50... Nf6 {[%clk
0:00:19.6]} 51. Rh8 {[%clk 0:00:08.2]} 51... Bd6 {[%clk 0:00:19.8]} 52. Ra8
{[%clk 0:00:08.7]} 52... Kf5 {[%clk 0:00:19.9]} 53. Ra6 {[%clk 0:00:09.6]} 53...
Be5 {[%clk 0:00:20.2]} 54. Ra5 {[%clk 0:00:10.1]} 54... Ke6 {[%clk 0:00:19.1]}
55. Ke3 {[%clk 0:00:10.5]} 55... Nd5+ {[%clk 0:00:18.2]} 56. Ke4 {[%clk
0:00:09.6]} 56... Nf6+ {[%clk 0:00:18.2]} 57. Kf3 {[%clk 0:00:09.7]} 57... Nd5
{[%clk 0:00:18.3]} 58. Ra6+ {[%clk 0:00:10.3]} 58... Kf5 {[%clk 0:00:18.5]} 59.
h4 {[%clk 0:00:11]} 59... Nf6 {[%clk 0:00:18.3]} 60. Ra5 {[%clk 0:00:11.1]}
60... Nh5 {[%clk 0:00:16.2]} 61. Ke3 {[%clk 0:00:11.1]} 61... Nf6 {[%clk
0:00:16]} 62. f4 {[%clk 0:00:11.3]} 62... Ng4+ {[%clk 0:00:14.9]} 63. Kf3 {[%clk
0:00:11.8]} 63... Nh2+ {[%clk 0:00:15.4]} 64. Kg2 {[%clk 0:00:12]} 64... Nf1
{[%clk 0:00:16]} 65. Rxe5+ {[%clk 0:00:07.7]} 65... Kxf4 {[%clk 0:00:15.8]} 66.
Re2 {[%clk 0:00:08.4]} 66... Ne3+ {[%clk 0:00:15.9]} 67. Rxe3 {[%clk 0:00:08.9]}
67... Kxe3 {[%clk 0:00:16.8]} 68. h5 {[%clk 0:00:09.4]} 1-0

[Event "Late-Titled-Tuesday-Blitz-April-23-2024"]
[Site "Chess.com"]
[Date "2024.04.23"]
[Round "1"]
[White "dropstoneDP"]
[Black "Tonychess32"]
[Result "1-0"]
[WhiteElo "3026"]
[BlackElo "2527"]
[TimeControl "180+1"]
[EndTime "14:08:17 PDT"]
[Termination "dropstoneDP won on time"]

1. e4 {[%clk 0:03:00.9]} 1... e6 {[%clk 0:02:59.6]} 2. d4 {[%clk 0:03:00.5]}
2... d5 {[%clk 0:03:00]} 3. e5 {[%clk 0:03:01.1]} 3... c5 {[%clk 0:03:00.1]} 4.
c3 {[%clk 0:03:01.6]} 4... Nc6 {[%clk 0:03:00.1]} 5. Nf3 {[%clk 0:03:02.3]} 5...
cxd4 {[%clk 0:03:00.5]} 6. cxd4 {[%clk 0:03:02]} 6... Nge7 {[%clk 0:03:01.4]} 7.
Bd3 {[%clk 0:03:01]} 7... Nf5 {[%clk 0:03:01.8]} 8. Bxf5 {[%clk 0:03:00.8]} 8...
exf5 {[%clk 0:03:02.7]} 9. Nc3 {[%clk 0:03:00.2]} 9... Be6 {[%clk 0:03:02.5]}
10. h4 {[%clk 0:02:54]} 10... h6 {[%clk 0:03:02.6]} 11. Kf1 {[%clk 0:02:52]}
11... Be7 {[%clk 0:03:01.6]} 12. Bf4 {[%clk 0:02:46.3]} 12... Qb6 {[%clk
0:02:53.7]} 13. Qd2 {[%clk 0:02:46]} 13... Na5 {[%clk 0:02:47.5]} 14. b3 {[%clk
0:02:37.3]} 14... Rc8 {[%clk 0:02:45.8]} 15. Na4 {[%clk 0:02:17.8]} 15... Qa6+
{[%clk 0:02:42.7]} 16. Kg1 {[%clk 0:02:18.2]} 16... b6 {[%clk 0:02:19.3]} 17.
Rc1 {[%clk 0:02:10.6]} 17... Qb7 {[%clk 0:02:17.2]} 18. Rxc8+ {[%clk 0:02:03.9]}
18... Qxc8 {[%clk 0:02:17.2]} 19. h5 {[%clk 0:01:53.9]} 19... Qc6 {[%clk
0:01:49.7]} 20. Kh2 {[%clk 0:01:17.5]} 20... Ba3 {[%clk 0:01:48.6]} 21. Kg3
{[%clk 0:01:12.2]} 21... Ke7 {[%clk 0:01:44.6]} 22. Nc5 {[%clk 0:00:58.5]} 22...
Rc8 {[%clk 0:01:30.4]} 23. Nxe6 {[%clk 0:00:55.8]} 23... Qxe6 {[%clk 0:01:25.7]}
24. Qd3 {[%clk 0:00:55]} 24... Bb4 {[%clk 0:01:13.9]} 25. Qb5 {[%clk 0:00:34.2]}
25... Ba3 {[%clk 0:00:58.5]} 26. Kh2 {[%clk 0:00:28.8]} 26... Rc2 {[%clk
0:00:52.8]} 27. Qa6 {[%clk 0:00:23.5]} 27... Qd7 {[%clk 0:00:45.2]} 28. e6
{[%clk 0:00:18.9]} 28... Qb7 {[%clk 0:00:42.6]} 29. Qd3 {[%clk 0:00:17.8]} 29...
Rxf2 {[%clk 0:00:39.8]} 30. Qxf5 {[%clk 0:00:17.4]} 30... fxe6 {[%clk
0:00:33.7]} 31. Re1 {[%clk 0:00:17.9]} 31... Qd7 {[%clk 0:00:26.6]} 32. Qg6
{[%clk 0:00:17.7]} 32... Kf8 {[%clk 0:00:12.3]} 33. Rxe6 {[%clk 0:00:16.8]}
33... Qf7 {[%clk 0:00:12.8]} 34. Qg4 {[%clk 0:00:04]} 34... Be7 {[%clk 0:00:08]}
35. Ne5 {[%clk 0:00:03.9]} 35... Qxf4+ {[%clk 0:00:07.8]} 36. Qxf4+ {[%clk
0:00:04.2]} 36... Rxf4 {[%clk 0:00:08.7]} 37. Ng6+ {[%clk 0:00:04.7]} 37... Kf7
{[%clk 0:00:09.4]} 38. Nxf4 {[%clk 0:00:05.3]} 38... Bg5 {[%clk 0:00:09.7]} 39.
g3 {[%clk 0:00:01.8]} 39... Bxf4 {[%clk 0:00:09.8]} 40. Re2 {[%clk 0:00:02.2]}
40... Bg5 {[%clk 0:00:10]} 41. Rc2 {[%clk 0:00:02.4]} 41... Bf6 {[%clk
0:00:09.1]} 42. Rc7+ {[%clk 0:00:02.6]} 42... Ke6 {[%clk 0:00:09.6]} 43. Rxa7
{[%clk 0:00:02.7]} 43... Bxd4 {[%clk 0:00:09.9]} 44. Kg2 {[%clk 0:00:03.3]}
44... Bf6 {[%clk 0:00:10.2]} 45. b4 {[%clk 0:00:02.2]} 45... Nc4 {[%clk
0:00:10.3]} 46. a4 {[%clk 0:00:02]} 46... d4 {[%clk 0:00:10.7]} 47. Rc7 {[%clk
0:00:01.9]} 47... Kd5 {[%clk 0:00:09.4]} 48. a5 {[%clk 0:00:01.9]} 48... bxa5
{[%clk 0:00:09.5]} 49. Rc5+ {[%clk 0:00:02.2]} 49... Ke4 {[%clk 0:00:08.4]} 50.
Rxc4 {[%clk 0:00:03.1]} 50... a4 {[%clk 0:00:08.6]} 51. b5 {[%clk 0:00:03.4]}
51... a3 {[%clk 0:00:08.2]} 52. Ra4 {[%clk 0:00:04]} 52... Be7 {[%clk
0:00:07.5]} 53. b6 {[%clk 0:00:04.2]} 53... Bd6 {[%clk 0:00:07.8]} 54. b7 {[%clk
0:00:04.7]} 54... Ke3 {[%clk 0:00:06.9]} 55. Rxa3+ {[%clk 0:00:04.6]} 55... d3
{[%clk 0:00:07.3]} 56. Ra6 {[%clk 0:00:04.5]} 56... Bb8 {[%clk 0:00:07.1]} 57.
Ra8 {[%clk 0:00:04.5]} 57... d2 {[%clk 0:00:06.9]} 58. Rxb8 {[%clk 0:00:05.2]}
58... d1=Q {[%clk 0:00:07.4]} 59. Re8+ {[%clk 0:00:05.9]} 59... Kd2 {[%clk
0:00:05.6]} 60. Rd8+ {[%clk 0:00:06.4]} 1-0

[Event "Late-Titled-Tuesday-Blitz-April-23-2024"]
[Site "Chess.com"]
[Date "2024.04.23"]
[Round "1"]
[White "jup1978"]
[Black "GMKrikor"]
[Result "1/2-1/2"]
[WhiteElo "2508"]
[BlackElo "2887"]
[TimeControl "180+1"]
[EndTime "14:08:17 PDT"]
[Termination "Game drawn by repetition"]

1. e4 {[%clk 0:02:58.7]} 1... c5 {[%clk 0:02:58.5]} 2. Nf3 {[%clk 0:02:58.1]}
2... Nc6 {[%clk 0:02:58.6]} 3. Bb5 {[%clk 0:02:54.7]} 3... Nf6 {[%clk 0:02:58]}
4. Bxc6 {[%clk 0:02:53.9]} 4... dxc6 {[%clk 0:02:57.8]} 5. d3 {[%clk 0:02:53.8]}
5... Bg4 {[%clk 0:02:58]} 6. Nbd2 {[%clk 0:02:50.2]} 6... Nd7 {[%clk 0:02:51.2]}
7. h3 {[%clk 0:02:48.3]} 7... Bh5 {[%clk 0:02:46]} 8. Nf1 {[%clk 0:02:40.4]}
8... e5 {[%clk 0:02:45.3]} 9. Ng3 {[%clk 0:02:40]} 9... Bg6 {[%clk 0:02:45.9]}
10. Bd2 {[%clk 0:02:31.4]} 10... f6 {[%clk 0:02:42.2]} 11. Qe2 {[%clk
0:02:29.6]} 11... Bd6 {[%clk 0:02:37.4]} 12. a3 {[%clk 0:02:27.4]} 12... Nf8
{[%clk 0:02:31.9]} 13. Nh4 {[%clk 0:02:22.7]} 13... Ne6 {[%clk 0:02:27]} 14. c3
{[%clk 0:02:13]} 14... Bf7 {[%clk 0:02:24.3]} 15. O-O {[%clk 0:01:58.4]} 15...
g6 {[%clk 0:02:20.7]} 16. Nf3 {[%clk 0:01:53.9]} 16... O-O {[%clk 0:02:11.8]}
17. Be3 {[%clk 0:01:53.8]} 17... Qd7 {[%clk 0:02:07.1]} 18. Rfd1 {[%clk
0:01:52.9]} 18... Qc7 {[%clk 0:01:53.1]} 19. Nf1 {[%clk 0:01:50.3]} 19... Rfe8
{[%clk 0:01:51.1]} 20. d4 {[%clk 0:01:48.9]} 20... exd4 {[%clk 0:01:46.5]} 21.
cxd4 {[%clk 0:01:49.8]} 21... cxd4 {[%clk 0:01:46.2]} 22. Nxd4 {[%clk
0:01:49.4]} 22... Nc5 {[%clk 0:01:37.6]} 23. f3 {[%clk 0:01:43.5]} 23... Rad8
{[%clk 0:01:36.3]} 24. b4 {[%clk 0:01:42.4]} 24... Nd7 {[%clk 0:01:31.4]} 25.
Rac1 {[%clk 0:01:32.1]} 25... Qb8 {[%clk 0:01:31.2]} 26. Qc2 {[%clk 0:01:28.8]}
26... Ne5 {[%clk 0:01:27.8]} 27. Nb3 {[%clk 0:01:25.6]} 27... Bc7 {[%clk
0:01:22.4]} 28. Rxd8 {[%clk 0:01:21.9]} 28... Rxd8 {[%clk 0:01:22.4]} 29. Rd1
{[%clk 0:01:22.4]} 29... Nc4 {[%clk 0:01:18.1]} 30. Bc1 {[%clk 0:01:13.8]} 30...
Rxd1 {[%clk 0:00:50.8]} 31. Qxd1 {[%clk 0:01:14.7]} 31... Qe8 {[%clk 0:00:50.1]}
32. Ne3 {[%clk 0:01:10.1]} 32... Ne5 {[%clk 0:00:45.3]} 33. Nc5 {[%clk
0:00:55.9]} 33... b6 {[%clk 0:00:43.9]} 34. Nd3 {[%clk 0:00:55.7]} 34... Qd7
{[%clk 0:00:36.5]} 35. Nxe5 {[%clk 0:00:54.2]} 35... Qxd1+ {[%clk 0:00:37.4]}
36. Nxd1 {[%clk 0:00:54.4]} 36... Bxe5 {[%clk 0:00:38.2]} 37. Kf2 {[%clk
0:00:51.9]} 37... Bb3 {[%clk 0:00:33.6]} 38. Ne3 {[%clk 0:00:48.2]} 38... Kf7
{[%clk 0:00:32.3]} 39. g3 {[%clk 0:00:48.1]} 39... Bd4 {[%clk 0:00:28.3]} 40.
Ke2 {[%clk 0:00:48.3]} 40... Be6 {[%clk 0:00:28.4]} 41. h4 {[%clk 0:00:47.5]}
41... h5 {[%clk 0:00:27.1]} 42. Kd3 {[%clk 0:00:45.3]} 42... Be5 {[%clk
0:00:25.1]} 43. f4 {[%clk 0:00:45.4]} 43... Bd6 {[%clk 0:00:22.9]} 44. Bb2
{[%clk 0:00:45.1]} 44... Be7 {[%clk 0:00:21.8]} 45. e5 {[%clk 0:00:44.5]} 45...
f5 {[%clk 0:00:19.4]} 46. Nc4 {[%clk 0:00:41.3]} 46... Bd5 {[%clk 0:00:16.9]}
47. Nd6+ {[%clk 0:00:37.8]} 47... Ke6 {[%clk 0:00:16.2]} 48. Bd4 {[%clk
0:00:27.5]} 48... Bd8 {[%clk 0:00:08.8]} 49. Kc3 {[%clk 0:00:25.2]} 49... Kd7
{[%clk 0:00:06.2]} 50. Nf7 {[%clk 0:00:21.9]} 50... Be7 {[%clk 0:00:05.1]} 51.
Nd6 {[%clk 0:00:21.5]} 51... Bd8 {[%clk 0:00:05.5]} 52. Be3 {[%clk 0:00:20.6]}
52... Bc7 {[%clk 0:00:05.3]} 53. Bd4 {[%clk 0:00:20.7]} 53... a6 {[%clk
0:00:05.1]} 54. Be3 {[%clk 0:00:20]} 54... Bd8 {[%clk 0:00:04.1]} 55. Bd4 {[%clk
0:00:20.1]} 55... Bc7 {[%clk 0:00:03.3]} 56. Be3 {[%clk 0:00:19.7]} 56... a5
{[%clk 0:00:02.7]} 57. Bd4 {[%clk 0:00:19.8]} 57... axb4+ {[%clk 0:00:02.6]} 58.
axb4 {[%clk 0:00:20.7]} 58... Bd8 {[%clk 0:00:02.3]} 59. Be3 {[%clk 0:00:18.4]}
59... Bc7 {[%clk 0:00:02.3]} 60. Bd4 {[%clk 0:00:18.6]} 60... Ke6 {[%clk
0:00:02.4]} 61. Be3 {[%clk 0:00:15.5]} 61... b5 {[%clk 0:00:02.6]} 62. Bc5
{[%clk 0:00:14.7]} 62... Bd8 {[%clk 0:00:03.2]} 63. Kd4 {[%clk 0:00:14.9]} 63...
Bc7 {[%clk 0:00:03.3]} 64. Kc3 {[%clk 0:00:15]} 64... Bd8 {[%clk 0:00:03.4]} 65.
Kd4 {[%clk 0:00:15.3]} 65... Bc7 {[%clk 0:00:03.3]} 66. Kc3 {[%clk 0:00:15.5]}
1/2-1/2